bitfinex-derivatives/quotes_ETHF0:USTF0_20210102
["timestamp","ask_amount","ask_price","bid_price","bid_amount"]
[1609575320501,2.7632,731.02,730.84,6.01438]
[1609575321105,6.01438,730.94,730.84,6.01438]
[1609575321306,2.7367,730.93,730.84,6.01438]
[1609575322008,6.01438,730.94,730.84,6.01438]
[1609575323009,6.01438,730.85,730.84,6.01438]
[1609575323309,6.01438,730.85,730.71,3.704]
[1609575323510,6.01438,730.85,730.67,87.2435]
[1609575324712,2.7252,730.84,730.44,15.0303869]
[1609575325111,2.7252,730.84,730.67,6.01438]
[1609575325313,2.7252,730.84,730.67,9.51138]
[1609575327015,6.01438,730.68,730.67,9.51138]
[1609575327216,8.78178,730.68,730.67,9.51138]
[1609575327617,2.7674,730.68,730.67,9.51138]
[1609575328321,0.16328192,731.0,730.67,9.51138]
[1609575328719,0.16316018,730.99,730.67,9.51138]
[1609575329123,6.01438,730.77,730.67,9.51138]
[1609575329422,2.737,730.76,730.67,9.51138]
[1609575329822,6.01438,730.77,730.67,9.51138]
[1609575331023,6.01438,730.68,730.67,9.51138]
[1609575331224,2.7502,730.68,730.67,9.51138]
[1609575332528,0.16315418,731.0,730.67,9.51138]
[1609575333126,6.01438,730.75,730.67,9.51138]
[1609575333525,2.7092,730.74,730.67,9.51138]
[1609575333726,2.7437,730.73,730.67,9.51138]
[1609575336028,6.01438,730.75,730.67,9.51138]
[1609575343346,6.01438,730.75,730.67,3.497]
[1609575343541,6.01438,730.75,730.49,6.01438]
[1609575345243,6.01438,730.5,730.49,6.01438]
[1609575347646,0.16299828,730.83,730.49,6.01438]
[1609575348048,0.1630395,730.87,730.49,6.01438]
[1609575348551,0.1630708,730.9,730.49,6.01438]
[1609575349151,0.1630708,730.9,730.64,94.3201]
[1609575349354,6.01438,730.75,730.64,104.36048]
[1609575350154,6.01438,730.75,730.64,10.04038]
[1609575351556,0.16318179,731.01,730.64,10.04038]
[1609575352058,0.16318179,731.01,730.67,88.9289]
[1609575352257,0.16318179,731.01,730.64,10.04038]
[1609575352656,0.16318179,731.01,730.68,86.1957]
[1609575353260,0.16318179,731.01,730.87,6.01438]
[1609575353457,6.01438,731.04,730.87,6.01438]
[1609575353458,0.16317373,731.03,730.87,6.01438]
[1609575353657,0.16317373,731.03,730.87,10.03738]
[1609575354358,0.16317373,731.03,730.87,4.023]
[1609575354562,6.01438,731.04,730.87,4.023]
[1609575355261,6.01438,730.88,730.87,4.023]
[1609575355462,0.16328487,731.13,730.87,4.023]
[1609575356065,0.16323908,731.09,730.87,4.023]
[1609575357264,0.16323908,731.09,730.87,17.0549]
[1609575357265,6.01438,730.99,730.87,17.0549]
[1609575357465,0.16323908,731.09,730.87,4.023]
[1609575357868,0.16323908,731.09,731.07,82.9648]
[1609575359271,0.16323908,731.09,731.08,6.01438]
[1609575359471,0.16327147,731.3,731.08,6.01438]
[1609575360070,0.16327652,731.32,731.08,6.01438]
[1609575360672,0.16327652,731.32,731.11,10.9245]
[1609575360873,0.16324936,731.29,731.11,10.9245]
[1609575361374,6.01438,731.23,731.11,10.9245]
[1609575361573,6.01438,731.23,731.08,6.01438]
[1609575363376,6.01438,731.23,731.03,4.486]
[1609575363377,6.01438,731.23,731.17,6.01438]
[1609575364776,6.01438,731.23,731.03,4.486]
[1609575364976,84.2667,731.18,730.87,4.023]
[1609575365178,17.7681,731.17,730.57,98.8092]
[1609575365374,17.7681,731.17,730.42,6.01438]
[1609575365375,6.01438,730.7,730.42,6.01438]
[1609575365575,8.76808,730.7,730.18,28.38002768]
[1609575365775,23.76808,730.7,730.63,18.37766442]
[1609575366275,23.76808,730.7,730.49,21.71905795]
[1609575366276,23.76808,730.7,730.34,25.06045148]
[1609575366478,105.2317,730.55,730.06,15.0375658]
[1609575367078,105.2317,730.55,729.97,15.03881052]
[1609575367278,124.8397,730.55,729.97,15.03881052]
[1609575367477,21.01438,730.34,729.97,15.03881052]
[1609575367680,6.01438,730.34,729.92,15.04266359]
[1609575368280,9.21738,730.34,729.92,15.04266359]
[1609575368980,0.16239528,730.33,729.7,15.04518342]
[1609575369380,6.01438,729.88,729.87,6.01438]
[1609575369783,0.16226145,730.21,729.87,6.01438]
[1609575370584,0.162242,730.2,729.87,6.01438]
[1609575371387,6.01438,730.1,729.96,6.01438]
[1609575371987,6.01438,730.1,729.84,79.06]
[1609575372387,6.01438,730.1,729.8,4.341]
[1609575373488,6.01438,729.81,729.8,10.35538]
[1609575374288,6.01438,729.81,729.8,4.341]
[1609575375090,6.01438,729.81,729.71,0.22722635]
[1609575375488,6.01438,729.72,729.71,0.22722635]
[1609575382695,6.01438,729.72,729.71,2.635e-05]
[1609575382894,6.01438,729.72,729.08,15.05423591]
[1609575383095,6.01438,729.72,729.04,15.05723797]
[1609575383293,88.004,729.63,729.04,15.05723797]
[1609575383494,6.01438,729.23,729.06,6.01438]
[1609575383894,1.91428,729.23,729.06,6.01438]
[1609575385495,1.91428,729.23,729.15,6.01438]
[1609575385695,0.16161901,729.6,729.15,10.62738]
[1609575386501,0.16167284,729.66,729.15,10.62738]
[1609575387502,6.01438,729.39,729.26,6.01438]
[1609575388506,6.01438,729.39,729.15,4.613]
[1609575389508,6.01438,729.16,729.15,4.613]
[1609575390108,85.5759,729.49,729.15,4.613]
[1609575391008,85.5759,729.49,729.13,6.01438]
[1609575391207,85.5759,729.49,729.15,3.693]
[1609575391611,6.01438,729.28,729.15,3.693]
[1609575392207,17.93268,729.28,729.15,3.693]
[1609575392407,17.93268,729.28,729.15,3.293]
[1609575392811,6.01438,729.28,729.15,3.293]
[1609575393010,84.4623,729.16,729.15,3.293]
[1609575393610,90.47668,729.16,729.15,3.293]
[1609575394712,94.65468,729.16,728.69,6.01438]
[1609575395512,94.65468,729.16,728.84,6.01438]
[1609575395711,10.19238,729.16,728.84,6.01438]
[1609575396713,6.01438,729.16,728.84,6.01438]
[1609575396913,0.16134267,729.35,728.84,6.01438]
[1609575397312,2.7315,729.34,729.0,3.511]
[1609575397512,6.01438,729.1,729.0,3.511]
[1609575400019,6.01438,729.1,728.79,15.06480983]
[1609575401324,6.01438,729.1,728.69,15.0664067]
[1609575402126,6.01438,729.1,728.54,21.08109428]
[1609575402923,6.01438,729.1,728.54,6.01438]
[1609575403424,118.71178,729.1,728.54,6.01438]
[1609575403724,118.71178,729.1,728.54,21.08136617]
[1609575403922,6.01438,729.1,728.54,21.08136617]
[1609575404322,6.01438,729.1,728.54,21.01438]
[1609575404523,6.01438,729.1,728.54,6.01438]
[1609575405325,6.01438,729.1,728.73,15.06534463]
[1609575406425,6.01438,729.1,728.54,6.01438]
[1609575406426,6.01438,729.1,728.63,15.06596249]
[1609575406625,6.01438,729.1,729.09,8.905e-05]
[1609575406825,6.01438,729.1,728.63,15.06596249]
[1609575407226,6.01438,729.1,728.54,6.01438]
[1609575407425,8.77248,729.1,728.54,6.01438]
[1609575407626,6.01438,728.65,728.54,6.01438]
[1609575408230,6.01438,728.65,728.47,0.25895176]
[1609575408627,99.4112,728.64,728.45,15.06808907]
[1609575408836,102.19,728.64,728.45,15.06808907]
[1609575409028,102.19,728.64,728.45,14.59688907]
[1609575409428,102.19,728.64,728.36,18.42080385]
[1609575409629,6.01438,728.4,728.36,18.42080385]
[1609575409830,14.8256,728.39,728.36,18.42080385]
[1609575410030,6.01438,728.4,728.36,18.42080385]
[1609575410230,95.4644,728.37,728.36,4.464]
[1609575410430,6.01438,728.4,728.36,4.464]
[1609575410630,103.8226,728.39,728.36,4.464]
[1609575410834,106.5479,728.39,728.36,4.464]
[1609575411031,106.5479,728.39,728.36,4.2842]
[1609575413538,103.8226,728.39,728.36,4.2842]
[1609575414140,0.16060671,728.68,728.36,4.2842]
[1609575414339,0.16069662,728.76,728.36,4.2842]
[1609575414740,6.7204,728.8,728.36,4.2842]
[1609575415541,6.7204,728.8,728.13,6.01438]
[1609575415741,6.01438,728.42,727.97,100.2941]
[1609575415944,2.741,728.41,727.96,21.77238902]
[1609575416944,2.741,728.41,727.97,15.0]
[1609575417144,2.741,728.41,727.99,21.77116047]
[1609575417343,2.741,728.41,727.99,36.77116047]
[1609575417645,2.741,728.41,728.35,6.01438]
[1609575417851,6.01438,728.48,728.35,10.20238]
[1609575418445,0.16078456,728.87,728.35,10.20238]
[1609575419044,0.1607974,728.9,728.35,10.20238]
[1609575419644,6.01438,728.48,728.35,10.20238]
[1609575419844,6.01438,728.48,728.35,25.27329847]
[1609575420045,2.7228,728.47,728.35,25.27329847]
[1609575420545,2.7228,728.47,728.35,10.20238]
[1609575421546,0.16070471,728.82,728.35,10.20238]
[1609575421747,6.01438,728.57,728.35,10.20238]
[1609575422750,2.7203,728.56,728.35,10.20238]
[1609575425453,6.01438,728.57,728.35,10.20238]
[1609575425650,6.01438,728.57,728.48,6.01438]
[1609575427154,0.16074129,728.86,728.48,6.01438]
[1609575427755,0.1607158,728.84,728.58,6.01438]
[1609575428555,6.01438,728.9,728.58,6.01438]
[1609575428756,6.01438,728.9,728.58,10.09538]
[1609575428959,0.16085447,728.97,728.58,10.09538]
[1609575429758,0.16085447,728.97,728.77,6.01438]
[1609575429959,6.01438,729.0,728.77,10.79738]
[1609575430159,2.7533,728.99,728.77,10.79738]
[1609575431161,6.01438,729.0,728.77,10.79738]
[1609575431361,0.16102319,729.15,728.77,38.60578]
[1609575431761,0.16102319,729.15,729.08,6.01438]
[1609575431962,0.16102319,729.15,729.08,10.59338]
[1609575432162,2.7679,729.23,729.08,10.59338]
[1609575432363,0.16115113,729.28,729.08,10.59338]
[1609575432563,2.7835,729.27,729.08,10.59338]
[1609575432764,6.01438,729.31,729.08,10.59338]
[1609575433467,0.16131637,729.42,729.08,10.59338]
[1609575433664,6.01438,729.39,729.16,6.01438]
[1609575435668,6.01438,729.17,729.16,6.01438]
[1609575435869,8.72728,729.17,729.16,6.01438]
[1609575436369,6.01438,729.17,729.16,6.01438]
[1609575436869,0.16141645,729.53,729.16,6.01438]
[1609575437770,6.01438,729.45,729.28,6.01438]
[1609575437970,0.1612502,729.42,729.28,6.01438]
[1609575438570,6.01438,729.45,729.28,6.01438]
[1609575438769,6.01438,729.45,729.28,9.24338]
[1609575438970,2.7006,729.44,729.28,9.24338]
[1609575439169,6.01438,729.45,729.28,9.24338]
[1609575440171,2.7782,729.44,729.28,9.24338]
[1609575440369,2.7782,729.44,729.28,3.229]
[1609575440570,6.01438,729.45,729.28,3.229]
[1609575441771,6.01438,729.29,729.28,3.229]
[1609575442772,8.75908,729.29,729.28,3.229]
[1609575443476,6.01438,729.29,729.28,3.229]
[1609575443875,6.01438,729.29,729.08,4.579]
[1609575444076,6.01438,729.29,729.01,6.01438]
[1609575444676,2.7706,729.28,729.01,6.01438]
[1609575445977,6.01438,729.29,729.01,6.01438]
[1609575446178,0.1612064,729.37,729.01,10.03138]
[1609575446478,0.16106673,729.29,729.01,10.03138]
[1609575447178,0.16106687,729.3,729.01,10.03138]
[1609575447580,0.16110226,729.32,729.01,10.03138]
[1609575447778,0.16110226,729.32,729.28,6.01438]
[1609575447979,0.16110226,729.32,729.28,3.504]
[1609575448980,2.7502,729.31,729.28,3.504]
[1609575450280,6.01438,729.39,729.28,3.504]
[1609575451281,2.7063,729.38,729.28,3.504]
[1609575451882,3.22134561,729.61,729.28,3.504]
[1609575451883,6.01438,729.29,729.28,3.504]
[1609575452085,0.1610784,729.3,729.28,3.504]
[1609575452485,2.57725444,729.56,729.28,3.504]
[1609575452486,1.93260513,729.45,729.28,3.504]
[1609575452983,2.7415,729.44,729.28,3.504]
[1609575453183,2.7415,729.44,729.22,6.01438]
[1609575453184,4.67397461,729.44,729.22,6.01438]
[1609575453784,6.01438,729.3,729.22,6.01438]
[1609575453984,4.67397461,729.44,729.22,6.01438]
[1609575454185,4.67397461,729.44,729.22,9.18938]
[1609575454387,0.16102341,729.25,729.22,9.18938]
[1609575454887,0.16106269,729.27,729.22,9.18938]
[1609575455490,2.7619,729.26,729.22,9.18938]
[1609575455990,0.16101544,729.24,729.22,9.18938]
[1609575457390,6.01438,729.4,729.22,9.18938]
[1609575457391,0.16106106,729.29,729.22,9.18938]
[1609575457790,1.93273266,729.47,729.22,9.18938]
[1609575457791,0.16112545,729.35,729.22,9.18938]
[1609575459091,0.16121847,729.44,729.22,9.18938]
[1609575459794,0.16121847,729.44,729.43,6.01438]
[1609575460193,2.89091847,729.44,729.43,6.01438]
[1609575461294,2.7297,729.44,729.43,6.01438]
[1609575462496,0.16125821,729.49,729.43,6.01438]
[1609575462696,5.01893872,729.64,729.43,6.01438]
[1609575462697,0.16142815,729.64,729.43,6.01438]
[1609575463798,0.16142815,729.64,729.63,6.01438]
[1609575464198,0.16142815,729.64,729.63,10.27038]
[1609575465899,0.16144288,729.65,729.63,10.27038]
[1609575467003,0.16150772,729.7,729.63,10.27038]
[1609575468002,6.01438,729.9,729.63,10.27038]
[1609575468003,0.16146349,729.66,729.63,10.27038]
[1609575469505,0.16149329,729.68,729.63,10.27038]
[1609575470107,6.01438,729.73,729.63,10.27038]
[1609575470309,2.7393,729.72,729.63,10.27038]
[1609575472710,1.93650588,729.77,729.63,10.27038]
[1609575472913,1.93634177,729.78,729.63,10.27038]
[1609575473311,0.16147422,729.7,729.63,10.27038]
[1609575473810,2.7399,729.69,729.63,10.27038]
[1609575474311,0.16144023,729.67,729.63,10.27038]
[1609575475011,0.16143937,729.66,729.63,10.27038]
[1609575475211,2.7399,729.65,729.63,10.27038]
[1609575475411,0.16143937,729.66,729.63,10.27038]
[1609575476113,0.16141708,729.64,729.63,10.27038]
[1609575476713,2.7207,729.64,729.63,10.27038]
[1609575477213,0.16144013,729.66,729.63,10.27038]
[1609575477713,0.16141202,729.64,729.63,10.27038]
[1609575478815,0.16144022,729.66,729.63,10.27038]
[1609575480418,1.93612966,729.77,729.63,10.27038]
[1609575481922,1.93643181,729.78,729.63,4.256]
[1609575482121,1.93643181,729.78,729.62,4.691]
[1609575483422,1.93643181,729.78,729.38,3.832]
[1609575483625,15.0,729.79,729.38,3.832]
[1609575483824,2.58104171,729.78,729.38,3.534]
[1609575484024,2.58104171,729.78,729.52,6.01438]
[1609575484626,1.93445066,729.59,729.52,6.01438]
[1609575485527,1.93425598,729.58,729.38,3.534]
[1609575486029,6.01438,729.39,729.38,3.534]
[1609575486634,6.95451515,729.58,729.38,3.534]
[1609575487232,0.16120301,729.43,729.38,3.534]
[1609575487831,0.16127212,729.5,729.38,3.534]
[1609575488234,0.16127212,729.5,729.49,6.01438]
[1609575488633,0.16126852,729.51,729.49,6.01438]
[1609575489636,1.9352223,729.69,729.38,3.534]
[1609575490038,0.1613111,729.53,729.22,3.175]
[1609575490236,6.01438,729.5,729.37,6.01438]
[1609575490636,0.1613111,729.53,729.37,6.01438]
[1609575490837,0.16124381,729.47,729.37,10.94538]
[1609575491636,0.16125183,729.48,729.37,10.94538]
[1609575491936,5.0200429,729.85,729.37,10.94538]
[1609575491937,0.16123265,729.46,729.37,10.94538]
[1609575493238,0.16125162,729.49,729.37,10.94538]
[1609575494038,0.16125515,729.5,729.37,10.94538]
[1609575494237,0.16125515,729.5,729.49,6.01438]
[1609575494637,6.01438,729.61,729.49,6.01438]
[1609575496140,6.01438,729.52,729.49,6.01438]
[1609575500842,6.01438,729.52,729.37,4.931]
[1609575501042,6.01438,729.52,729.22,3.175]
[1609575501242,6.01438,729.52,729.04,15.0]
[1609575501844,6.01438,729.52,729.02,15.0]
[1609575502343,1.9344475,729.64,729.34,6.01438]
[1609575502544,1.9344475,729.64,729.34,9.40638]
[1609575503344,0.16119266,729.45,729.34,9.40638]
[1609575503948,2.57926333,729.71,729.34,9.40638]
[1609575503949,0.16133286,729.53,729.34,9.40638]
[1609575504342,0.16133286,729.53,729.46,6.01438]
[1609575506344,6.01438,729.47,729.46,6.01438]
[1609575508647,0.16133734,729.55,729.46,6.01438]
[1609575509852,0.16130433,729.56,729.46,6.01438]
[1609575510452,0.16130433,729.56,729.55,6.01438]
[1609575510652,0.16131436,729.57,729.55,6.01438]
[1609575512154,1.93659117,729.81,729.55,6.01438]
[1609575512355,1.93659117,729.81,729.8,6.01438]
[1609575513155,1.93659117,729.81,729.8,18.78118]
[1609575513356,1.93747701,729.91,729.8,18.78118]
[1609575514455,1.93747701,729.91,729.9,6.01438]
[1609575514662,1.93954252,730.06,729.9,9.51738]
[1609575515676,5.01694434,730.29,729.9,9.51738]
[1609575515677,1.94084688,730.14,729.9,9.51738]
[1609575515958,1.94083389,730.15,729.9,9.51738]
[1609575516358,1.94083389,730.15,730.14,6.01438]
[1609575516760,1.94095408,730.16,730.14,6.01438]
[1609575520763,1.94095408,730.16,730.07,3.715]
[1609575521064,1.94079,730.15,730.07,3.715]
[1609575521665,1.94079,730.15,729.9,3.503]
[1609575521864,1.94079,730.15,729.8,12.7668]
[1609575522466,6.95799824,730.15,730.1,6.01438]
[1609575524868,1.94045574,730.11,730.06,3.1]
[1609575525868,1.94006269,730.08,730.06,3.1]
[1609575526069,1.94006269,730.08,729.57,100.6194]
[1609575526471,6.01438,729.58,729.57,100.6194]
[1609575526674,1.94006269,730.08,729.57,100.6194]
[1609575527771,2.58675026,730.15,729.57,100.6194]
[1609575527972,2.58654926,730.09,729.57,100.6194]
[1609575528471,6.01438,729.8,729.67,6.01438]
[1609575530073,1.93842301,729.92,729.67,6.01438]
[1609575530277,1.93842301,729.92,729.67,10.04038]
[1609575530475,1.93842301,729.92,729.84,6.01438]
[1609575530875,1.93792002,729.91,729.84,6.01438]
[1609575531477,1.93938217,730.01,729.84,6.01438]
[1609575531676,1.93938217,730.01,729.84,9.85638]
[1609575532079,1.9397615,730.03,729.84,9.85638]
[1609575532577,1.9397615,730.03,729.96,6.01438]
[1609575533778,1.9397615,730.03,729.84,3.842]
[1609575534580,6.3597615,730.03,729.74,6.01438]
[1609575535483,4.42,730.03,729.74,6.01438]
[1609575536382,1.93923002,730.0,729.74,6.01438]
[1609575536582,6.01438,729.84,729.83,6.01438]
[1609575540087,1.93891605,730.0,729.83,6.01438]
[1609575540287,1.93862127,729.98,729.83,6.01438]
[1609575542890,1.9388312,729.99,729.83,6.01438]
[1609575543793,1.9388312,729.99,729.91,80.5686]
[1609575544192,1.9388312,729.99,729.91,84.5216]
[1609575544593,1.9388312,729.99,729.98,6.01438]
[1609575544995,1.93871141,730.0,729.98,6.01438]
[1609575545899,1.94085483,730.14,729.98,6.01438]
[1609575546697,1.94085483,730.14,730.13,6.01438]
[1609575546899,1.94096808,730.15,730.13,6.01438]
[1609575547497,1.94096808,730.15,729.91,84.5216]
[1609575547698,1.94096808,730.15,729.91,3.953]
[1609575548601,6.01438,730.08,730.05,6.01438]
[1609575549700,5.01720192,730.07,730.05,6.01438]
[1609575551102,1.94462321,730.06,730.05,6.01438]
[1609575552804,6.96370825,730.07,730.05,6.01438]
[1609575553706,1.94625265,730.06,730.05,6.01438]
[1609575553905,1.94683015,730.09,730.05,6.01438]
[1609575554806,1.94692648,730.1,730.05,6.01438]
[1609575555110,1.94717793,730.11,730.05,6.01438]
[1609575557206,1.94688499,730.1,730.05,6.01438]
[1609575557807,5.01718445,730.13,730.05,6.01438]
[1609575559114,1.94757136,730.18,730.05,6.01438]
[1609575560213,1.94822091,730.24,730.05,6.01438]
[1609575560613,1.94822091,730.24,730.23,6.01438]
[1609575562514,6.96474517,730.25,730.23,6.01438]
[1609575563116,5.01587846,730.24,730.23,6.01438]
[1609575563416,5.01584244,730.25,730.08,4.4]
[1609575564116,1.948581,730.22,730.08,4.4]
[1609575564618,1.948581,730.22,730.08,10.41438]
[1609575567718,1.94898777,730.21,730.08,10.41438]
[1609575568120,1.94872686,730.18,730.08,10.41438]
[1609575568418,1.94912598,730.21,730.08,10.41438]
[1609575568619,1.94912598,730.21,730.18,6.01438]
[1609575569519,1.94914367,730.23,730.18,6.01438]
[1609575570321,1.94963353,730.27,730.18,6.01438]
[1609575570720,1.94963353,730.27,730.26,6.01438]
[1609575571226,1.95080214,730.34,730.26,6.01438]
[1609575571723,1.95099552,730.36,730.26,6.01438]
[1609575572121,1.95114094,730.37,730.26,6.01438]
[1609575572722,1.95114094,730.37,730.36,6.01438]
[1609575573222,1.95146544,730.38,730.36,6.01438]
[1609575575124,1.95146544,730.38,730.37,90.1752]
[1609575575323,3.25229532,730.52,730.37,90.1752]
[1609575575324,1.95179662,730.42,730.37,90.1752]
[1609575578825,1.95189605,730.45,730.37,90.1752]
[1609575579327,1.95315889,730.5,730.37,90.1752]
[1609575579827,1.95315889,730.5,730.36,6.01438]
[1609575581129,1.95271203,730.45,730.36,6.01438]
[1609575583235,1.95244656,730.43,730.36,6.01438]
[1609575583832,1.95261222,730.42,730.36,6.01438]
[1609575584233,1.95271058,730.43,730.36,6.01438]
[1609575584833,5.01379498,730.41,730.36,6.01438]
[1609575586038,1.95268015,730.42,730.36,6.01438]
[1609575586640,1.95316923,730.44,730.36,6.01438]
[1609575586940,1.95316923,730.44,730.23,4.457]
[1609575587139,1.95316923,730.44,730.15,83.9012]
[1609575587440,1.95316923,730.44,730.42,6.01438]
[1609575589947,1.95343275,730.45,730.42,6.01438]
[1609575590746,1.9535992,730.46,730.42,6.01438]
[1609575591746,1.95375699,730.47,730.42,6.01438]
[1609575592348,1.95367156,730.44,730.42,6.01438]
[1609575593149,1.95350829,730.45,730.42,6.01438]
[1609575595650,5.01376917,730.43,730.42,6.01438]
[1609575596751,5.01376917,730.43,730.37,3.618]
[1609575596951,5.01376917,730.43,730.08,4.4]
[1609575597152,1.95377825,730.46,730.08,4.4]
[1609575597352,1.95377825,730.46,730.08,3.699]
[1609575597551,6.01438,730.29,730.11,6.01438]
[1609575598552,5.41438,730.29,730.11,6.01438]
[1609575599355,1.95129919,730.26,730.11,6.01438]
[1609575599557,6.01438,730.12,730.11,6.01438]
[1609575599754,15.0,730.11,729.91,3.953]
[1609575599953,15.0,730.11,729.49,110.2057]
[1609575601671,98.9965,730.15,729.73,6.01438]
[1609575601955,113.9965,730.15,729.73,6.01438]
[1609575602154,113.9965,730.15,729.73,9.00138]
[1609575602356,1.94804833,729.97,729.73,9.00138]
[1609575603256,5.0170169,730.1,729.73,9.00138]
[1609575603257,1.94857391,730.01,729.73,9.00138]
[1609575603657,6.01438,729.74,729.73,2.987]
[1609575605757,1.94815291,729.97,729.73,2.987]
[1609575605958,1.94842724,729.98,729.73,2.987]
[1609575607265,1.94842724,729.98,729.64,6.01438]
[1609575607662,6.01438,729.65,729.64,6.01438]
[1609575608263,6.01438,729.65,729.49,110.2057]
[1609575609771,17.59757116,730.05,729.49,110.2057]
[1609575609772,5.01709764,729.96,729.56,6.01438]
[1609575610166,5.01709764,729.96,729.56,10.84438]
[1609575610968,1.94801374,729.93,729.56,10.84438]
[1609575611167,1.94801374,729.93,729.56,4.83]
[1609575611569,1.94808006,729.92,729.56,4.83]
[1609575611769,6.01438,729.72,729.56,4.83]
[1609575613672,6.01438,729.72,729.67,6.01438]
[1609575614672,6.01438,729.72,729.56,4.83]
[1609575615274,6.01438,729.72,729.49,110.2057]
[1609575615674,6.01438,729.61,729.57,6.01438]
[1609575617674,6.01438,729.83,729.57,6.01438]
[1609575617875,6.01438,729.83,729.57,10.45338]
[1609575619576,6.01438,729.83,729.67,108.5358]
[1609575619777,6.01438,729.83,729.77,6.01438]
[1609575620080,6.01438,729.83,729.77,10.53138]
[1609575620676,1.95122914,730.02,729.77,10.53138]
[1609575621078,1.95105668,730.03,729.77,10.53138]
[1609575621678,1.95105668,730.03,729.77,4.517]
[1609575621879,1.95227537,730.1,729.87,6.01438]
[1609575622582,1.95176234,730.06,729.87,6.01438]
[1609575623082,1.95183602,730.07,729.87,6.01438]
[1609575623684,6.01438,729.88,729.87,6.01438]
[1609575624084,6.01438,729.88,729.77,4.517]
[1609575625286,6.01438,729.88,729.57,112.4884]
[1609575625486,1.95067096,729.98,729.57,112.4884]
[1609575625685,1.95067096,729.98,729.57,4.439]
[1609575625886,5.87884,731.56,729.26,15.0]
[1609575625887,1.95097209,730.0,729.9,6.01438]
[1609575626291,1.9515437,730.04,729.9,6.01438]
[1609575626690,1.95131839,730.03,729.9,6.01438]
[1609575627787,6.01438,729.91,729.9,6.01438]
[1609575628687,1.9515917,730.04,729.9,6.01438]
[1609575629690,6.96817378,730.04,729.9,6.01438]
[1609575629891,6.96817378,730.04,729.98,6.01438]
[1609575630291,6.96817378,730.04,729.8,3.947]
[1609575630493,5.01658208,730.04,729.8,3.947]
[1609575630991,6.96851244,730.03,729.8,3.947]
[1609575631792,6.96851244,730.03,729.82,6.01438]
[1609575632997,1.95152556,730.0,729.82,6.01438]
[1609575633797,6.01438,729.83,729.82,6.01438]
[1609575640501,1.94849185,730.02,729.82,6.01438]
[1609575640902,1.94849185,730.02,729.84,101.6208]
[1609575641705,1.94717513,730.01,729.84,101.6208]
[1609575641907,1.94717513,730.01,730.0,6.01438]
[1609575642907,1.95054781,730.14,730.0,6.01438]
[1609575643507,1.95054781,730.14,730.0,10.45938]
[1609575643708,1.95118417,730.18,730.0,10.45938]
[1609575643907,1.95118417,730.18,730.1,6.01438]
[1609575644408,1.95182427,730.23,730.1,6.01438]
[1609575645813,6.01438,730.11,730.1,6.01438]
[1609575647411,1.95182427,730.23,730.1,6.01438]
[1609575647814,6.01438,730.22,730.1,6.01438]
[1609575649814,6.01438,730.11,730.1,6.01438]
[1609575654725,6.61438,730.11,730.1,6.01438]
[1609575659433,0.6,730.11,730.1,6.01438]
[1609575672746,0.6,730.11,730.06,107.8657]
[1609575673744,1.95701674,730.67,730.06,15.0]
[1609575673944,1.95701674,730.67,730.66,6.01438]
[1609575674145,1.9570459,730.7,730.66,6.01438]
[1609575674344,1.9570459,730.7,730.66,84.18508]
[1609575675348,6.01438,730.76,730.66,84.18508]
[1609575675349,1.95720931,730.74,730.66,84.18508]
[1609575675947,6.01438,730.67,730.66,84.18508]
[1609575676147,6.01438,730.67,730.66,6.01438]
[1609575676346,6.01438,730.67,730.57,4.057]
[1609575677854,6.01438,730.58,730.57,4.057]
[1609575678852,1.95672187,730.71,730.57,4.057]
[1609575679055,1.95648118,730.69,730.57,4.057]
[1609575679252,1.95648118,730.69,730.47,111.42258]
[1609575679854,1.95648118,730.69,730.62,6.01438]
[1609575680055,5.01230061,730.7,730.62,6.01438]